bitfinex/quotes_BTCUSD_20260127
["timestamp","ask_amount","ask_price","bid_price","bid_amount"]
[1769504134134,0.00783869,88245.0,88236.0,0.01133324]
[1769504134334,0.00783869,88245.0,88237.0,0.01133311]
[1769504134782,0.00783869,88245.0,88238.0,0.01133298]
[1769504135106,0.00783869,88245.0,88237.0,0.01133311]
[1769504135478,0.00783869,88245.0,88239.0,0.01133285]
[1769504135682,0.00783869,88245.0,88237.0,0.01133311]
[1769504137055,0.00783869,88245.0,88236.0,0.01133324]
[1769504137910,0.00783869,88245.0,88235.0,0.01133337]
[1769504138319,0.00783869,88245.0,88231.0,0.01133388]
[1769504138523,0.36602523,88246.0,88232.0,0.01133375]
[1769504138866,0.00783869,88245.0,88232.0,0.01133375]
[1769504139255,0.34162648,88245.0,88232.0,0.01133375]
[1769504139464,0.00783869,88244.0,88228.0,0.3876516]
[1769504139645,0.02439875,88240.0,88228.0,0.01133427]
[1769504139846,0.36602523,88239.0,88229.0,0.01133414]
[1769504140039,0.36602523,88239.0,88230.0,0.01133401]
[1769504140461,0.36602523,88239.0,88228.0,0.01133427]
[1769504140670,0.36602523,88239.0,88227.0,0.0001489]
[1769504140867,0.36602523,88239.0,88229.0,0.01133414]
[1769504141068,0.36602523,88239.0,88228.0,0.01133427]
[1769504141267,0.36602523,88239.0,88229.0,0.01133414]
[1769504141467,0.36602523,88239.0,88228.0,0.01133427]
[1769504143019,0.36602523,88239.0,88229.0,0.01133414]
[1769504143991,0.02439875,88237.0,88222.0,0.01133504]
[1769504144202,0.0001489,88250.0,88219.0,0.0001489]
[1769504144203,0.36602523,88235.0,88224.0,0.05667346]
[1769504144541,0.36602523,88235.0,88225.0,0.01133465]
[1769504145076,0.36602523,88235.0,88224.0,0.01133478]
[1769504145206,0.36602523,88235.0,88223.0,0.06800887]
[1769504145207,0.36602523,88235.0,88223.0,0.01133491]
[1769504145416,0.37904086,88250.0,88220.0,0.01133529]
[1769504145417,0.34162648,88233.0,88220.0,0.01133529]
[1769504145616,0.36602523,88233.0,88221.0,0.01133516]
[1769504146221,0.36602523,88233.0,88225.0,0.01133465]
[1769504146444,0.36602523,88233.0,88223.0,0.01133491]
[1769504146602,0.36602523,88233.0,88225.0,0.01133465]
[1769504147616,0.02439875,88233.0,88226.0,0.01133452]
[1769504148271,0.02439875,88233.0,88225.0,0.01133465]
[1769504150056,0.02439875,88233.0,88224.0,0.01133478]
[1769504150262,0.02439875,88233.0,88225.0,0.01133465]
[1769504150491,0.02439875,88233.0,88220.0,0.06796606]
[1769504150693,0.02439875,88233.0,88223.0,0.05667453]
[1769504151264,0.00783869,88238.0,88225.0,0.01133465]
[1769504151435,0.34162648,88237.0,88225.0,0.01133465]
[1769504151646,0.00783869,88236.0,88225.0,0.01133465]
[1769504152009,0.00783869,88236.0,88226.0,0.01133452]
[1769504152546,0.00783869,88236.0,88225.0,0.01133465]
[1769504153497,0.00783869,88236.0,88224.0,0.01133478]
[1769504154455,0.33875993,88235.0,88224.0,0.01133478]
[1769504154693,0.00783869,88234.0,88223.0,0.01133491]
[1769504154922,0.00783869,88234.0,88224.0,0.01133478]
[1769504156246,0.00783869,88234.0,88225.0,0.01133465]
[1769504156651,0.00783869,88234.0,88219.0,0.06816132]
[1769504156652,0.02308847,88230.0,88219.0,0.06816132]
[1769504156857,0.34659862,88229.0,88223.0,0.01133491]
[1769504157031,0.33875993,88229.0,88222.0,0.01133504]
[1769504157453,0.33875993,88229.0,88221.0,0.01133516]
[1769504157630,0.00783869,88228.0,88220.0,0.01133529]
[1769504157835,0.00783869,88228.0,88220.0,0.0114756]
[1769504158013,0.00783869,88228.0,88220.0,0.00014031]
[1769504159289,0.34659862,88228.0,88220.0,0.00014031]
[1769504159501,0.33875993,88228.0,88220.0,0.00014031]
[1769504159702,0.00783869,88227.0,88220.0,0.00014031]
[1769504160253,0.00783869,88227.0,88220.0,0.0114756]
[1769504160456,0.00783869,88227.0,88220.0,0.00014031]
[1769504163274,0.00783869,88227.0,88220.0,0.0114756]
[1769504163704,0.02308847,88248.0,88223.0,0.01133491]
[1769504163908,0.33875993,88247.0,88230.0,0.01133401]
[1769504164118,0.33875993,88247.0,88232.0,0.01133375]
[1769504164320,0.33875993,88247.0,88231.0,0.01099317]
[1769504164524,0.0001489,88250.0,88231.0,0.01099317]
[1769504164525,0.33875993,88245.0,88231.0,0.01099317]
[1769504164922,0.33875993,88245.0,88233.0,0.01133362]
[1769504165124,0.33875993,88245.0,88232.0,0.01133375]
[1769504165302,0.33875993,88245.0,88233.0,0.01133362]
[1769504165666,0.33875993,88245.0,88232.0,0.01133375]
[1769504165873,0.33875993,88245.0,88233.0,0.01133362]
[1769504166087,0.33875993,88245.0,88231.0,0.01133388]
[1769504166323,0.33875993,88245.0,88232.0,0.01133375]
[1769504167062,0.33875993,88245.0,88233.0,0.01133362]
[1769504169612,0.33875993,88245.0,88229.0,0.05667039]
[1769504169613,0.33875993,88243.0,88224.0,0.01133478]
[1769504169835,0.37911922,88250.0,88230.0,0.01133401]
[1769504169836,0.33875993,88241.0,88230.0,0.01133401]
[1769504170049,0.33875993,88241.0,88229.0,0.01133414]
[1769504170255,0.33875993,88241.0,88230.0,0.01133401]
[1769504170905,0.33875993,88241.0,88231.0,0.01133388]
[1769504171495,0.33875993,88241.0,88230.0,0.01133401]
[1769504171698,0.33875993,88241.0,88231.0,0.01133388]
[1769504171854,0.33875993,88241.0,88232.0,0.01133375]
[1769504172631,0.33875993,88241.0,88234.0,0.01133349]
[1769504173325,0.02308847,88242.0,88234.0,0.01133349]
[1769504173517,0.33875993,88247.0,88234.0,0.01133349]
[1769504173723,0.33875993,88247.0,88235.0,0.01133337]
[1769504173928,0.33875993,88247.0,88234.0,0.01133349]
[1769504175340,0.33875993,88247.0,88228.0,0.22668361]
[1769504175341,0.33875993,88247.0,88230.0,0.01133401]
[1769504175639,0.33875993,88245.0,88232.0,0.01133375]
[1769504176182,0.33875993,88245.0,88230.0,0.01133401]
[1769504176320,0.3618484,88245.0,88230.0,0.01133401]
[1769504178068,0.3618484,88245.0,88231.0,0.01133388]
[1769504178257,0.3618484,88245.0,88227.0,0.03541486]
[1769504178594,0.02308847,88244.0,88228.0,0.01133427]
[1769504178883,0.3618484,88243.0,88229.0,0.01133414]
[1769504179322,0.3618484,88243.0,88228.0,0.01133427]
[1769504179531,0.3618484,88243.0,88229.0,0.01133414]
[1769504179744,0.02308847,88242.0,88228.0,0.01133427]
[1769504179942,0.33875993,88241.0,88228.0,0.01133427]
[1769504180444,0.33875993,88241.0,88229.0,0.01133414]
[1769504180580,0.33875993,88241.0,88228.0,0.01133427]
[1769504182332,0.33875993,88241.0,88229.0,0.01133414]
[1769504182829,0.33875993,88241.0,88227.0,0.01133439]
[1769504182830,0.36176411,88241.0,88227.0,0.01133439]
[1769504183032,0.36176411,88241.0,88226.0,0.06800712]
[1769504183791,0.36176411,88241.0,88227.0,0.01133439]
[1769504183994,0.36176411,88241.0,88228.0,0.01133427]
[1769504184173,0.36176411,88241.0,88227.0,0.01133439]
[1769504184738,0.36176411,88241.0,88228.0,0.01133427]
[1769504184934,0.35877141,88240.0,88227.0,0.01133439]
[1769504185518,0.35877141,88240.0,88226.0,0.01133452]
[1769504185743,0.35877141,88240.0,88227.0,0.01133439]
[1769504186376,0.35877141,88240.0,88228.0,0.01133427]
[1769504186761,0.35877141,88240.0,88227.0,0.01133439]
[1769504188914,0.35877141,88240.0,88226.0,0.01133452]
[1769504189106,0.35877141,88240.0,88227.0,0.01133439]
[1769504189534,0.35877141,88240.0,88226.0,0.01133452]
[1769504189741,0.35877141,88240.0,88227.0,0.01133439]
[1769504191064,0.35877141,88240.0,88228.0,0.01133427]
[1769504191259,0.35877141,88240.0,88229.0,0.01133414]
[1769504191471,0.35877141,88240.0,88228.0,0.01133427]
[1769504192098,0.35877141,88240.0,88229.0,0.01133414]
[1769504192306,0.35877141,88240.0,88231.0,0.01133388]
[1769504192501,0.02331353,88240.0,88233.0,0.01133362]
[1769504193631,0.02331353,88240.0,88234.0,0.01133349]
[1769504193814,0.33545788,88246.0,88234.0,0.01133349]
[1769504194007,0.33545788,88246.0,88235.0,0.01133337]
[1769504194729,0.33545788,88246.0,88236.0,0.01133324]
[1769504194889,0.0001489,88250.0,88236.0,0.01133324]
[1769504194890,0.0001489,88250.0,88238.0,0.01133298]
[1769504195088,0.0001489,88250.0,88241.0,0.0113326]
[1769504195481,0.0001489,88250.0,88241.0,0.00513255]
[1769504195906,0.0001489,88250.0,88242.0,0.01133247]
[1769504196194,0.0001489,88250.0,88243.0,0.01133234]
[1769504196820,0.0001489,88250.0,88244.0,0.01133221]
[1769504197402,0.0001489,88250.0,88243.0,0.01133234]
[1769504197594,0.0001489,88250.0,88244.0,0.01133221]
[1769504198629,0.0001489,88250.0,88241.0,0.023185]
[1769504199159,0.0001489,88250.0,88242.0,0.01133247]
[1769504202888,0.0001489,88250.0,88240.0,0.01133272]
[1769504203122,0.0001489,88250.0,88241.0,0.0113326]
[1769504205494,0.0001489,88250.0,88242.0,0.01133247]
[1769504205852,0.0001489,88250.0,88241.0,0.0113326]
[1769504206501,0.0001489,88250.0,88242.0,0.01133247]
[1769504207080,0.0001489,88250.0,88241.0,0.0113326]
[1769504207303,0.0001489,88250.0,88242.0,0.01133247]
[1769504207507,0.0001489,88250.0,88241.0,0.0113326]
[1769504207721,0.0001489,88250.0,88239.0,0.01133285]
[1769504208085,0.0001489,88250.0,88238.0,0.01133298]
[1769504208344,0.02346243,88250.0,88232.0,0.35700663]
[1769504208535,0.35877141,88249.0,88233.0,0.01133362]
[1769504208769,0.02331353,88248.0,88235.0,0.01133337]
[1769504210652,0.35877141,88248.0,88235.0,0.01133337]
[1769504211131,0.35877141,88248.0,88233.0,0.01133362]
[1769504211357,0.33545788,88247.0,88235.0,0.01133337]
[1769504211566,0.02331353,88246.0,88236.0,0.01133324]
[1769504212402,0.02331353,88246.0,88237.0,0.01133311]
[1769504212771,0.02331353,88246.0,88236.0,0.01133324]
[1769504213001,0.02331353,88246.0,88234.0,0.01133349]
[1769504213528,0.02331353,88246.0,88235.0,0.01133337]
[1769504214100,0.02331353,88246.0,88234.0,0.01158126]
[1769504214414,0.02331353,88246.0,88235.0,0.01133337]
[1769504215123,0.02331353,88246.0,88234.0,0.01158126]
[1769504216416,0.02331353,88246.0,88235.0,0.01133337]
[1769504216750,0.02331353,88246.0,88234.0,0.01158126]
[1769504216948,0.02331353,88246.0,88236.0,0.01133324]
[1769504217155,0.02331353,88246.0,88238.0,0.01133298]
[1769504217473,0.0001489,88250.0,88238.0,0.01133298]
[1769504217876,0.0001489,88250.0,88239.0,0.01133285]
[1769504218076,0.0001489,88250.0,88242.0,0.01133247]
[1769504218277,0.0001489,88250.0,88243.0,0.01133234]
[1769504218480,0.02451423,88257.0,88244.0,0.01133221]
[1769504218481,0.02450207,88257.0,88244.0,0.01133221]
[1769504218662,0.32953915,88254.0,88242.0,0.01133247]
[1769504218859,0.35405338,88254.0,88242.0,0.01133247]
[1769504219073,0.35405338,88254.0,88243.0,0.01133234]
[1769504219278,0.35373104,88254.0,88243.0,0.01133234]
[1769504219600,0.35373104,88254.0,88242.0,0.01133247]
[1769504220001,0.35373104,88254.0,88243.0,0.01133234]
[1769504220213,0.35373104,88254.0,88242.0,0.01133247]
[1769504220411,0.35373104,88254.0,88243.0,0.01133234]
[1769504220574,0.35373104,88254.0,88244.0,0.01133221]
[1769504220769,0.35373104,88254.0,88242.0,0.01133247]
[1769504220970,0.35373104,88254.0,88243.0,0.01133234]
[1769504221392,0.35373104,88254.0,88244.0,0.01133221]
[1769504221598,0.35373104,88254.0,88243.0,0.01133234]
[1769504222089,0.35373104,88254.0,88242.0,0.01133247]
[1769504222700,0.35373104,88254.0,88243.0,0.01133234]
[1769504223161,0.35373104,88254.0,88241.0,0.0113326]
[1769504223363,0.35373104,88254.0,88242.0,0.01133247]
[1769504224533,0.35373104,88254.0,88242.0,0.18150666]
[1769504224809,0.35373104,88254.0,88242.0,0.17017419]
[1769504225237,0.35373104,88254.0,88243.0,0.17017419]
[1769504226204,0.32953915,88252.0,88243.0,0.17017419]
[1769504226398,0.35405338,88252.0,88237.0,0.01133311]
[1769504227180,0.35405338,88252.0,88238.0,0.01133298]
[1769504228201,0.35405338,88252.0,88238.0,0.06799784]
[1769504228375,0.35405338,88252.0,88240.0,0.01133272]
[1769504228604,0.35405338,88252.0,88239.0,0.01133285]
[1769504229197,0.35405338,88252.0,88240.0,0.01133272]
[1769504230291,0.35405338,88252.0,88241.0,0.0113326]
[1769504230629,0.35405338,88252.0,88240.0,0.01133272]
[1769504231842,0.35405338,88252.0,88239.0,0.01133285]
[1769504232036,0.35405338,88252.0,88238.0,0.01133298]
[1769504232771,0.35405338,88252.0,88241.0,0.0113326]
[1769504233107,0.35405338,88252.0,88242.0,0.01133247]
[1769504234253,0.0001489,88259.0,88243.0,0.01133234]
[1769504234443,0.0001489,88259.0,88245.0,0.01133208]
[1769504234644,0.0001489,88259.0,88245.0,0.01071888]
[1769504234806,0.02466313,88259.0,88246.0,0.01133195]
[1769504235231,0.32968805,88259.0,88246.0,0.01133195]
[1769504235497,0.32968805,88259.0,88242.0,0.05666221]
[1769504235498,0.32953915,88258.0,88241.0,0.0113326]
[1769504235649,0.02451423,88257.0,88244.0,0.01133221]
[1769504235846,0.32953915,88257.0,88244.0,0.01133221]
[1769504236057,0.02451423,88256.0,88244.0,0.01133221]
[1769504236685,0.02451423,88255.0,88244.0,0.01133221]
[1769504237063,0.02451423,88255.0,88241.0,0.06799509]
[1769504238503,0.02451423,88255.0,88242.0,0.01133247]
[1769504238716,0.02451423,88255.0,88242.0,0.01197363]
[1769504239433,0.02451423,88255.0,88243.0,0.01133234]
[1769504239639,0.02451423,88255.0,88242.0,0.01197363]
[1769504240328,0.02451423,88255.0,88243.0,0.01133234]
[1769504240934,0.02451423,88255.0,88242.0,0.01197363]
[1769504241418,0.02451423,88255.0,88243.0,0.01133234]
[1769504241620,0.02451423,88255.0,88244.0,0.01133221]
[1769504242047,0.02451423,88255.0,88243.0,0.01133234]
[1769504242492,0.02451423,88255.0,88244.0,0.01133221]
[1769504242770,0.0001489,88259.0,88247.0,0.01133182]
[1769504243116,0.0001489,88259.0,88248.0,0.0113317]
[1769504243317,0.0001489,88259.0,88249.0,0.01133157]
[1769504243528,0.0001489,88259.0,88251.0,0.35142848]
[1769504243739,0.0001489,88259.0,88251.0,0.34009717]
[1769504243935,0.00028914,88259.0,88246.0,0.01133195]
[1769504244197,0.00028914,88259.0,88246.0,0.30761424]
[1769504244413,0.00028914,88259.0,88245.0,0.01133208]
[1769504244577,0.00028914,88259.0,88243.0,0.01133234]
[1769504244776,0.03320084,88259.0,88243.0,0.01133234]
[1769504244979,0.33905197,88256.0,88236.0,0.01133324]
[1769504245184,0.00028914,88259.0,88237.0,0.01133311]
[1769504245185,0.0329117,88253.0,88237.0,0.01133311]
[1769504245391,0.0329117,88250.0,88237.0,0.01133311]
[1769504245555,0.0329117,88250.0,88236.0,0.01133324]
[1769504245933,0.0329117,88250.0,88238.0,0.01133298]
[1769504246200,0.0329117,88250.0,88237.0,0.01133311]
[1769504246402,0.0329117,88248.0,88237.0,0.01133311]
[1769504246625,0.0329117,88248.0,88238.0,0.01133298]
[1769504246996,0.0329117,88248.0,88237.0,0.01133311]
[1769504247708,0.0329117,88248.0,88236.0,0.01133324]
[1769504248113,0.0329117,88248.0,88237.0,0.01133311]
[1769504248877,0.0329117,88248.0,88236.0,0.01133324]
[1769504249075,0.0329117,88248.0,88235.0,0.12772796]
[1769504251603,0.0329117,88248.0,88236.0,0.01133324]
[1769504252033,0.0329117,88248.0,88237.0,0.01133311]
[1769504254153,0.0329117,88248.0,88238.0,0.01133298]
[1769504254359,0.0329117,88248.0,88237.0,0.01133311]
[1769504255797,0.0329117,88248.0,88238.0,0.01133298]
[1769504256199,0.02841284,88246.0,88232.0,0.22661462]
[1769504256562,0.02841284,88242.0,88232.0,0.01133375]
[1769504257017,0.02841284,88242.0,88233.0,0.01133362]
[1769504257231,0.02841284,88242.0,88232.0,0.01133375]
[1769504257425,0.02841284,88242.0,88233.0,0.01133362]
[1769504257613,0.02841284,88242.0,88232.0,0.01133375]
[1769504257827,0.02841284,88242.0,88233.0,0.01133362]
[1769504258029,0.02841284,88242.0,88234.0,0.01133349]
[1769504258237,0.02841284,88242.0,88233.0,0.01133362]
[1769504258590,0.02841284,88242.0,88234.0,0.01133349]
[1769504259411,0.02841284,88242.0,88233.0,0.01133362]
[1769504260232,0.02841284,88242.0,88234.0,0.01133349]
[1769504260984,0.02841284,88242.0,88233.0,0.01133362]
[1769504262809,0.02841284,88242.0,88234.0,0.01133349]
[1769504263021,0.02841284,88242.0,88232.0,0.01133375]
[1769504263182,0.02841284,88242.0,88233.0,0.01133362]
[1769504263795,0.02841284,88242.0,88234.0,0.01133349]
[1769504266205,0.02841284,88242.0,88235.0,0.01133337]
[1769504266607,0.02841284,88242.0,88234.0,0.01133349]
[1769504266802,0.33905197,88243.0,88234.0,0.01133349]
[1769504267005,0.33905197,88243.0,88235.0,0.01133337]
[1769504268855,0.33905197,88243.0,88234.0,0.01133349]
[1769504269225,0.33855277,88243.0,88235.0,0.01133337]
[1769504269797,0.33855277,88243.0,88236.0,0.01133324]
[1769504270214,0.33855277,88243.0,88237.0,0.01133311]
[1769504270416,0.00028914,88259.0,88240.0,0.01133272]
[1769504270417,0.33905197,88250.0,88240.0,0.01133272]
[1769504270624,0.33905197,88250.0,88241.0,0.0113326]
[1769504271409,0.33905197,88250.0,88240.0,0.01133272]
[1769504271601,0.33905197,88250.0,88241.0,0.0113326]
[1769504271811,0.33905197,88250.0,88236.0,0.01133324]
[1769504272133,0.33905197,88250.0,88240.0,0.01133272]
[1769504272442,0.02305736,88257.0,88239.0,0.01133285]
[1769504272650,0.02305736,88255.0,88238.0,0.01133298]
[1769504272858,0.33905197,88254.0,88238.0,0.01133298]
[1769504273355,0.33905197,88254.0,88239.0,0.01133285]
[1769504273708,0.33905197,88254.0,88238.0,0.01133298]
[1769504273909,0.33905197,88254.0,88239.0,0.01133285]
[1769504275664,0.33905197,88254.0,88240.0,0.01133272]
[1769504276442,0.33905197,88254.0,88243.0,0.01133234]
[1769504276785,0.33905197,88254.0,88241.0,0.18150896]
[1769504277151,0.33905197,88254.0,88242.0,0.01133247]
[1769504277352,0.33905197,88254.0,88241.0,0.18150896]
[1769504277568,0.33905197,88254.0,88242.0,0.01133247]
[1769504277838,0.33905197,88254.0,88241.0,0.18150896]
[1769504279314,0.33905197,88254.0,88242.0,0.18150883]
[1769504280167,0.33905197,88254.0,88242.0,0.17017636]
[1769504280371,0.33905197,88254.0,88242.0,0.18150883]
[1769504280578,0.33905197,88254.0,88243.0,0.02251607]
[1769504281659,0.00999999,88243.0,88239.0,0.17017636]
[1769504281877,0.31362704,88246.0,88232.0,0.02251607]
[1769504281878,0.31362704,88246.0,88232.0,0.03384982]
[1769504282105,0.31362704,88246.0,88233.0,0.01133362]
[1769504282310,0.31362704,88246.0,88232.0,0.02251607]
[1769504282520,0.31362704,88246.0,88228.0,0.22661462]
[1769504282521,0.31362704,88246.0,88227.0,0.0001489]
[1769504282724,0.31362704,88246.0,88219.0,0.22676352]
[1769504282725,0.00028914,88259.0,88221.0,0.01133516]
[1769504282726,0.31362704,88231.0,88221.0,0.01133516]
[1769504283139,0.31362704,88231.0,88220.0,0.01133529]
[1769504283765,0.31362704,88231.0,88219.0,0.01133542]
[1769504283977,0.31362704,88231.0,88219.0,0.01147573]
[1769504284194,0.31362704,88231.0,88220.0,0.01133529]
[1769504284611,0.31362704,88231.0,88219.0,0.01147573]
[1769504286711,0.33772479,88231.0,88219.0,0.00014031]
[1769504287942,0.37897387,88240.0,88219.0,0.00014031]
[1769504287943,0.02409775,88230.0,88219.0,0.00014031]
[1769504288148,0.31362704,88227.0,88219.0,0.00014031]
[1769504288323,0.02409775,88226.0,88219.0,0.00014031]
[1769504292043,0.02409775,88240.0,88219.0,0.01147573]
[1769504292249,0.02409775,88238.0,88219.0,0.01147573]
[1769504292557,0.33772479,88237.0,88220.0,0.01133529]
[1769504292746,0.02409775,88236.0,88221.0,0.01133516]
[1769504292948,0.0001489,88241.0,88219.0,0.01147573]
[1769504292949,0.31362704,88235.0,88219.0,0.01147573]
[1769504293156,0.33772479,88235.0,88219.0,0.01147573]
[1769504294572,0.33772479,88235.0,88220.0,0.01133529]
[1769504295407,0.33772479,88235.0,88221.0,0.01133516]
[1769504296274,0.33772479,88235.0,88222.0,0.01133504]
[1769504296456,0.33772479,88235.0,88221.0,0.01133516]
[1769504297252,0.33772479,88235.0,88219.0,0.00014031]
[1769504297553,0.33772479,88235.0,88221.0,0.01133516]
[1769504298268,0.33772479,88235.0,88220.0,0.01133529]
[1769504299507,0.33772479,88235.0,88219.0,0.00014031]
[1769504299802,0.33772479,88235.0,88219.0,0.01147573]
[1769504299968,0.33772479,88235.0,88220.0,0.01133529]
[1769504301341,0.33772479,88235.0,88221.0,0.01133516]
[1769504302414,0.33772479,88235.0,88220.0,0.01133529]
[1769504302616,0.33772479,88235.0,88219.0,0.01147573]
[1769504302952,0.33772479,88235.0,88222.0,0.01133504]
[1769504303094,0.33772479,88235.0,88221.0,0.01133516]
[1769504303301,0.33772479,88235.0,88220.0,0.01133529]
[1769504303506,0.33772479,88235.0,88219.0,0.06815264]
[1769504303507,0.33772479,88235.0,88219.0,0.01147573]
[1769504303868,0.33772479,88235.0,88220.0,0.01133529]
[1769504304526,0.33772479,88235.0,88221.0,0.01133516]
[1769504304730,0.33772479,88235.0,88220.0,0.01133529]
[1769504304913,0.33772479,88235.0,88219.0,0.01147573]
[1769504305855,0.33772479,88235.0,88220.0,0.01133529]
[1769504306648,0.31362704,88235.0,88221.0,0.01133516]
[1769504306878,0.0001489,88241.0,88221.0,0.01133516]
[1769504307068,0.0001489,88241.0,88223.0,0.02339916]
[1769504307245,0.0001489,88241.0,88223.0,0.01133491]
[1769504307581,0.32435324,88241.0,88224.0,0.02339916]
[1769504308022,0.32435324,88241.0,88224.0,0.03473394]
[1769504308227,0.32435324,88241.0,88224.0,0.02339916]
[1769504309568,0.0001489,88241.0,88222.0,0.06801003]
[1769504309778,0.32420434,88240.0,88226.0,0.06800713]
[1769504310011,0.32420434,88240.0,88228.0,0.01133427]
[1769504310626,0.32420434,88240.0,88229.0,0.01133414]
[1769504310805,0.32420434,88240.0,88230.0,0.01133401]
[1769504311017,0.32420434,88240.0,88228.0,0.0112886]
[1769504311217,0.32420434,88240.0,88227.0,0.01124356]
[1769504311417,0.32420434,88240.0,88228.0,0.01133427]
[1769504312068,0.32420434,88240.0,88229.0,0.01133414]
[1769504312490,0.32420434,88240.0,88230.0,0.01133401]
[1769504312658,0.32420434,88240.0,88229.0,0.01133414]
[1769504313610,0.32420434,88240.0,88230.0,0.01133401]
[1769504314048,0.32420434,88240.0,88229.0,0.01133414]
[1769504314433,0.32420434,88240.0,88228.0,0.01133427]
[1769504315249,0.32420434,88240.0,88227.0,0.01133439]
[1769504315385,0.32420434,88240.0,88226.0,0.02339916]
[1769504315593,0.32420434,88240.0,88226.0,0.03473368]
[1769504316481,0.32420434,88240.0,88227.0,0.01133439]
[1769504317147,0.32420434,88240.0,88226.0,0.03473368]
[1769504317638,0.32420434,88240.0,88227.0,0.01133439]
[1769504318042,0.00019141,88227.0,88226.0,0.03473368]
[1769504318274,0.32420434,88240.0,88227.0,0.01133439]
[1769504318450,0.32420434,88240.0,88226.0,0.03473368]
[1769504319300,0.32420434,88240.0,88227.0,0.01133439]
[1769504319743,0.32420434,88240.0,88226.0,0.02339916]
[1769504320336,0.32420434,88240.0,88226.0,0.03473368]
[1769504320577,0.32420434,88240.0,88227.0,0.01133439]
[1769504321413,0.32420434,88240.0,88226.0,0.02339916]
[1769504321625,0.32420434,88240.0,88226.0,0.03473368]
[1769504324209,0.32420434,88240.0,88227.0,0.01133439]
[1769504324578,0.32420434,88240.0,88226.0,0.03473368]
[1769504324778,0.32420434,88240.0,88226.0,0.01133452]
[1769504325866,0.32420434,88240.0,88227.0,0.01133439]
[1769504327334,0.32420434,88240.0,88227.0,0.06800614]
[1769504327634,0.32420434,88240.0,88229.0,0.01133414]
[1769504327835,0.32420434,88240.0,88227.0,0.01133439]
[1769504328031,0.0001489,88241.0,88228.0,0.01133427]
[1769504328668,0.0001489,88241.0,88229.0,0.01133414]
[1769504330552,0.0001489,88241.0,88228.0,0.01133427]
[1769504330754,0.0001489,88241.0,88229.0,0.01133414]
[1769504331601,0.0001489,88241.0,88228.0,0.01133427]
[1769504331778,0.0001489,88241.0,88229.0,0.01133414]
[1769504333899,0.0001489,88241.0,88228.0,0.01133427]
[1769504334303,0.0001489,88241.0,88227.0,0.01133439]
[1769504334521,0.02365665,88241.0,88227.0,0.01133439]
[1769504334679,0.02365665,88241.0,88228.0,0.01133427]
[1769504334867,0.32768445,88241.0,88227.0,0.01133439]
[1769504335065,0.02350775,88240.0,88227.0,0.01133439]
[1769504335668,0.02350775,88240.0,88223.0,0.01133491]
[1769504335669,0.02350775,88240.0,88223.0,0.06800898]
[1769504335874,0.02350775,88240.0,88225.0,0.01133465]
[1769504336513,0.02350775,88240.0,88223.0,0.01133491]
[1769504336755,0.32753555,88240.0,88224.0,0.01133478]
[1769504336971,0.02350775,88239.0,88224.0,0.01133478]
[1769504337147,0.02350775,88239.0,88219.0,0.01147573]
[1769504337351,0.32753555,88237.0,88219.0,0.00014031]
[1769504337549,0.3791206,88240.0,88213.0,0.06801709]
[1769504337550,0.32753555,88233.0,88213.0,0.05677926]
[1769504337918,0.02808675,88228.0,88216.0,0.01133581]
[1769504338337,0.02808675,88228.0,88217.0,0.01133568]
[1769504338548,0.02808675,88228.0,88216.0,0.01133581]
[1769504338920,0.32753555,88228.0,88216.0,0.01133581]
[1769504339075,0.35787165,88228.0,88216.0,0.01133581]
[1769504339284,0.35787165,88228.0,88217.0,0.01133568]
[1769504340125,0.35787165,88228.0,88216.0,0.01133581]
[1769504340476,0.32753555,88228.0,88215.0,0.01133594]
[1769504340733,0.0303361,88227.0,88217.0,0.01133568]
[1769504341286,0.0303361,88227.0,88216.0,0.01133581]
[1769504341604,0.0303361,88227.0,88215.0,0.01133594]
[1769504341806,0.0303361,88227.0,88216.0,0.01133581]
[1769504342554,0.0303361,88227.0,88217.0,0.01133568]
[1769504342996,7.417e-05,88233.0,88222.0,0.01133504]
[1769504343315,0.02350775,88232.0,88217.0,0.01133568]
[1769504343519,0.02350775,88232.0,88220.0,0.01133529]
[1769504344365,7.417e-05,88233.0,88222.0,0.01133504]
[1769504344566,7.417e-05,88233.0,88221.0,0.01133516]
[1769504344941,7.417e-05,88233.0,88218.0,0.3592417]
[1769504345290,7.417e-05,88233.0,88219.0,0.01133542]
[1769504346458,7.417e-05,88233.0,88220.0,0.01133529]
[1769504346894,7.417e-05,88233.0,88222.0,0.01133504]
[1769504347121,7.417e-05,88233.0,88221.0,0.01133516]
[1769504349904,7.417e-05,88233.0,88220.0,0.01133529]
[1769504350352,7.417e-05,88233.0,88219.0,0.01133542]
[1769504350606,7.417e-05,88233.0,88218.0,0.3592417]
[1769504350822,7.417e-05,88233.0,88219.0,0.01133542]
[1769504352416,7.417e-05,88233.0,88220.0,0.01133529]
[1769504352626,7.417e-05,88233.0,88219.0,0.01133542]
[1769504353400,0.35111747,88233.0,88218.0,0.01133555]
[1769504353750,0.35111747,88233.0,88217.0,0.01133568]
[1769504354505,0.35111747,88233.0,88218.0,0.01133555]
[1769504354739,0.35111747,88233.0,88217.0,0.01133568]
[1769504355249,0.35111747,88233.0,88218.0,0.01133555]
[1769504355422,0.35111747,88233.0,88219.0,0.01133542]
[1769504356673,0.35111747,88233.0,88220.0,0.01133529]
[1769504358457,0.35111747,88233.0,88217.0,0.06801392]
[1769504358914,0.35111747,88233.0,88219.0,0.01133542]
[1769504359318,0.35111747,88233.0,88217.0,0.01133568]
[1769504360001,0.35111747,88233.0,88216.0,0.06801474]
[1769504360195,0.35111747,88233.0,88218.0,0.01133555]
[1769504360490,0.35111747,88233.0,88217.0,0.01133568]
[1769504360697,0.35111747,88233.0,88218.0,0.01133555]
[1769504360925,0.35111747,88233.0,88217.0,0.01133568]
[1769504361129,0.35111747,88233.0,88218.0,0.01133555]
[1769504361425,0.35111747,88233.0,88216.0,0.01133581]
[1769504362536,7.417e-05,88233.0,88220.0,0.35349955]
[1769504362958,7.417e-05,88233.0,88220.0,0.01133529]
[1769504363184,7.417e-05,88233.0,88218.0,0.01133555]
[1769504363376,0.32576247,88233.0,88219.0,0.01133542]
[1769504363571,0.32576247,88233.0,88216.0,0.01133581]
[1769504363782,0.3256883,88231.0,88216.0,0.01133581]
[1769504364010,0.3256883,88231.0,88217.0,0.01133568]
[1769504365218,0.3256883,88231.0,88218.0,0.01133555]
[1769504366451,0.3256883,88231.0,88219.0,0.01133542]
[1769504367262,0.3256883,88231.0,88220.0,0.01133529]
[1769504367670,0.3256883,88231.0,88219.0,0.01133542]
[1769504368602,0.3256883,88231.0,88220.0,0.01133529]
[1769504368794,0.3256883,88231.0,88219.0,0.01133542]
[1769504369199,0.3256883,88231.0,88220.0,0.01133529]
[1769504369406,0.3256883,88231.0,88219.0,0.01133542]
[1769504369614,0.3256883,88231.0,88221.0,0.01133516]
[1769504373032,0.3256883,88231.0,88220.0,0.01133529]
[1769504373975,0.3256883,88231.0,88221.0,0.01133516]
[1769504374906,0.3256883,88231.0,88220.0,0.01133529]
[1769504375688,0.3256883,88231.0,88221.0,0.01133516]
[1769504375861,0.3256883,88231.0,88220.0,0.01133529]
[1769504376415,0.3256883,88231.0,88221.0,0.01133516]
[1769504377655,0.3256883,88231.0,88220.0,0.01133529]
[1769504379243,0.3256883,88231.0,88219.0,0.01133542]